bitfinex/quotes_ETHUSD_20241023
["timestamp","ask_amount","ask_price","bid_price","bid_amount"]
[1729700832887,3.96657,2521.1,2520.4,3.96748]
[1729700833080,3.96668,2521.0,2520.5,3.96745]
[1729700833522,3.96657,2521.1,2520.5,3.96745]
[1729700833894,3.9668,2521.0,2520.4,3.96748]
[1729700834210,3.96657,2521.1,2520.5,3.96741]
[1729700834415,3.96678,2521.0,2520.4,7.935]
[1729700834738,3.96657,2521.1,2520.5,3.96744]
[1729700834935,3.96657,2521.1,2520.6,3.9673]
[1729700835142,3.96599,2521.5,2520.7,0.8221]
[1729700835287,4.82335,2522.0,2520.7,0.8221]
[1729700835514,3.96583,2521.6,2521.1,3.9665]
[1729700835835,3.96558,2521.7,2521.1,3.96643]
[1729700836217,3.96585,2521.6,2521.0,3.96667]
[1729700836420,3.96589,2521.5,2521.0,3.96667]
[1729700836610,3.96589,2521.5,2520.9,3.96672]
[1729700836826,3.96589,2521.5,2521.0,3.96663]
[1729700837022,3.96559,2521.7,2521.1,3.96641]
[1729700837222,4.71728425,2521.9,2520.9,3.96673]
[1729700837223,3.96581,2521.6,2520.9,3.96673]
[1729700837427,3.96581,2521.6,2521.1,3.96651]
[1729700837656,3.96643,2521.2,2520.7,4.78914]
[1729700837819,3.96643,2521.2,2520.7,8.7562]
[1729700838020,3.96643,2521.2,2520.7,4.78914]
[1729700838220,3.96654,2521.1,2520.7,0.8221]
[1729700838421,3.96638,2521.2,2520.3,1.720113]
[1729700838649,3.96638,2521.2,2520.6,3.9672]
[1729700838862,3.9662,2521.3,2520.6,3.9672]
[1729700839032,3.9662,2521.3,2520.7,3.96702]
[1729700839456,3.96638,2521.2,2520.7,3.96702]
[1729700840159,3.96638,2521.2,2520.8,3.96699]
[1729700840374,3.96638,2521.2,2520.4,3.96752]
[1729700840654,3.96675,2521.0,2520.5,3.96743]
[1729700840967,3.96675,2521.0,2520.3,4.81365]
[1729700840968,3.96693,2520.9,2520.3,0.8459]
[1729700841133,3.96701,2520.8,2520.3,4.81357]
[1729700841456,3.96727,2520.7,2520.3,0.8459]
[1729700841664,3.96738,2520.6,2520.1,3.0]
[1729700841959,7.93415,2520.8,2520.2,3.96791]
[1729700842155,7.93415,2520.8,2520.3,3.96776]
[1729700842156,3.96701,2520.8,2520.3,3.96776]
[1729700842565,3.96701,2520.8,2520.2,3.96791]
[1729700842566,3.96716,2520.7,2520.2,3.96785]
[1729700842714,3.96716,2520.7,2520.2,7.9357]
[1729700842920,3.96716,2520.7,2520.2,3.96785]
[1729700843357,7.93441,2520.7,2520.2,3.96785]
[1729700843529,3.96716,2520.7,2520.2,3.96785]
[1729700843728,3.96749,2520.5,2520.0,4.80513]
[1729700843964,3.96749,2520.5,2519.3,4.59021549]
[1729700843965,3.96904,2519.5,2519.4,3.0]
[1729700844824,3.9689,2519.6,2519.4,3.0]
[1729700845053,7.93786,2519.6,2519.4,3.0]
[1729700845359,0.8099,2519.1,2519.0,6.6e-06]
[1729700845560,0.8099,2519.1,2517.8,2.0]
[1729700845561,0.01,2518.7,2517.8,2.0]
[1729700845764,3.97156,2517.9,2517.8,2.0]
[1729700846125,9.49860425,2518.0,2517.8,2.0]
[1729700846323,3.97156,2517.9,2517.8,2.0]
[1729700846542,4.78132,2518.0,2517.8,2.0]
[1729700847062,0.8099,2518.0,2517.8,2.0]
[1729700847222,4.71728425,2518.3,2517.8,2.0]
[1729700847719,3.97156,2517.9,2517.8,2.0]
[1729700848563,3.97118,2518.2,2517.8,2.0]
[1729700848747,3.97124,2518.1,2517.8,2.0]
[1729700848950,4.79696,2517.9,2517.8,2.0]
[1729700849122,4.79696,2517.9,2517.4,3.0]
[1729700849123,0.01,2517.5,2517.4,3.0]
[1729700849327,13.06141443,2517.5,2517.4,3.0]
[1729700849517,13.61141443,2517.5,2517.4,3.0]
[1729700849735,13.06141443,2517.5,2517.4,3.0]
[1729700850422,13.61141443,2517.5,2517.4,3.0]
[1729700850647,13.06141443,2517.5,2517.4,3.0]
[1729700853145,12.80664443,2517.1,2517.0,1e-05]
[1729700853345,12.80664443,2517.1,2516.5,0.1249866]
[1729700853346,7.62661,2516.6,2516.5,0.1249866]
[1729700853688,0.01,2516.2,2516.0,1e-05]
[1729700853847,3.97671,2514.7,2514.0,0.005]
[1729700854047,5.26382443,2514.8,2513.1,3.97914]
[1729700854321,3.97635,2514.9,2513.1,3.97914]
[1729700854322,0.01,2514.9,2513.2,0.398914]
[1729700854487,0.01,2515.5,2513.7,0.8667]
[1729700854642,0.01,2515.5,2513.4,5.27382443]
[1729700854643,3.0,2515.1,2513.6,0.8667]
[1729700854843,3.0,2515.5,2513.7,0.01]
[1729700855081,0.01,2515.6,2514.5,3.97691]
[1729700855082,3.97578,2515.3,2514.5,3.97691]
[1729700855390,3.97585,2515.2,2513.8,0.01]
[1729700855688,3.0,2515.0,2513.7,0.486504]
[1729700855843,3.0,2515.0,2513.8,3.97791]
[1729700855844,3.97654,2514.8,2513.8,3.97791]
[1729700856045,3.0,2515.0,2513.9,0.07955638]
[1729700856246,3.97589,2515.2,2513.7,3.97819]
[1729700856478,3.97632,2514.9,2513.9,3.97787]
[1729700856643,3.0,2515.4,2513.6,0.8667]
[1729700856644,3.97603,2515.1,2514.0,0.397787]
[1729700856848,3.97603,2515.1,2514.3,3.97714]
[1729700857051,7.95215,2515.1,2514.3,3.97714]
[1729700857245,3.97672,2514.7,2514.0,3.97769]
[1729700857454,3.01,2515.1,2513.6,0.8667]
[1729700857655,3.97705,2514.5,2513.7,3.97819]
[1729700857889,3.97709,2514.4,2513.7,8.440779]
[1729700858089,3.97709,2514.4,2513.7,4.462589]
[1729700858292,3.97726,2514.3,2513.7,0.484489]
[1729700858493,3.97661,2514.7,2513.3,3.97878]
[1729700858698,3.97753,2514.2,2513.5,3.97844]
[1729700859000,0.01,2514.8,2513.7,3.97812]
[1729700859001,3.97689,2514.6,2513.7,3.97812]
[1729700859204,3.97631,2514.9,2514.2,3.97738]
[1729700859360,3.97678,2514.6,2513.8,7.95584]
[1729700859681,3.97718,2514.4,2513.7,3.97818]
[1729700859886,7.95172,2515.2,2514.0,3.97767]
[1729700860067,3.97658,2514.8,2513.9,3.97774]
[1729700860270,3.97694,2514.5,2513.3,0.01]
[1729700860469,3.97721,2514.4,2513.7,3.97804]
[1729700860773,7.95398,2514.5,2513.7,3.97804]
[1729700860976,3.97736,2514.3,2512.9,5.26382443]
[1729700861168,3.97774,2514.0,2512.9,0.52638244]
[1729700861374,3.97788,2514.0,2512.6,0.844]
[1729700861592,3.01,2514.5,2512.6,0.834]
[1729700861593,3.97818,2513.8,2512.6,0.834]
[1729700861897,3.97847,2513.6,2512.8,3.97952]
[1729700862069,3.0,2514.1,2513.0,3.9792]
[1729700862070,3.97815,2513.8,2513.0,3.9792]
[1729700862274,0.63252748,2514.0,2512.7,3.97978]
[1729700862508,3.97867,2513.4,2512.7,3.97978]
[1729700862673,3.97859,2513.5,2512.3,0.01]
[1729700863006,3.01,2514.1,2512.3,0.01]
[1729700863173,3.01,2514.1,2512.3,0.49074164]
[1729700863174,0.55,2514.0,2512.3,0.49074164]
[1729700863506,3.97887,2513.3,2512.0,10.46736128]
[1729700863673,3.97858,2513.5,2512.0,10.47736128]
[1729700864015,6.97838,2513.6,2512.9,3.97945]
[1729700864158,6.9784,2513.6,2512.9,3.97945]
[1729700864471,0.62266256,2514.2,2513.7,3.97808]
[1729700864899,0.62266256,2514.2,2512.1,3.9806]
[1729700864900,5.26382443,2513.9,2512.0,5.21353685]
[1729700865069,3.97835,2513.6,2512.1,0.59180876]
[1729700865266,0.01,2513.7,2512.3,3.9803]
[1729700865589,3.97871,2513.4,2512.7,3.97969]
[1729700865976,3.97871,2513.4,2512.8,3.97961]
[1729700866302,3.97845,2513.6,2512.9,3.97944]
[1729700866303,3.97852,2513.5,2512.9,3.97944]
[1729700866467,3.9783,2513.7,2513.0,3.97921]
[1729700866666,3.9783,2513.7,2513.1,3.97914]
[1729700866860,0.62269598,2514.1,2513.2,3.97889]
[1729700867067,0.62269598,2514.1,2513.5,3.9784]
[1729700867303,5.69378895,2514.7,2513.5,3.97844]
[1729700867490,0.62261006,2514.0,2513.3,3.97873]
[1729700867688,3.97821,2513.7,2513.1,3.97907]
[1729700867871,3.97821,2513.7,2512.6,4.84194]
[1729700867872,3.9783,2513.7,2513.0,3.9793]
[1729700868069,0.62263668,2513.9,2512.8,3.97953]
[1729700868299,0.62263668,2513.9,2513.0,3.9793]
[1729700868300,3.9783,2513.7,2513.0,3.9793]
[1729700868507,8.57862668,2513.9,2512.8,0.882142]
[1729700868716,8.57862668,2513.9,2512.6,0.862]
[1729700868717,0.62263668,2513.9,2513.6,3.97835]
[1729700869001,3.97782,2514.0,2513.4,3.97855]
[1729700869197,9.86392833,2514.2,2513.0,0.0795758]
[1729700869416,3.97798,2513.9,2513.2,3.97887]
[1729700869604,3.97806,2513.8,2513.0,3.97922]
[1729700869822,3.97806,2513.8,2513.6,0.00597429]
[1729700870382,3.97779,2514.0,2513.6,0.00597429]
[1729700870627,3.0,2514.3,2513.7,3.97818]
[1729700870820,3.97686,2514.6,2514.0,3.9776]
[1729700870984,0.41489163,2515.2,2514.3,3.97715]
[1729700871181,0.41489163,2515.2,2514.6,3.97674]
[1729700871182,3.97584,2515.2,2514.6,3.97674]
[1729700871425,3.97584,2515.2,2514.5,3.9769]
[1729700871426,3.97598,2515.1,2514.5,3.9769]
[1729700871741,3.98508,2515.7,2515.0,3.97609]
[1729700871742,3.97532,2515.6,2515.0,3.97609]
[1729700872027,4.38938796,2516.0,2514.5,4.45959]
[1729700872028,3.97497,2515.8,2514.7,3.97658]
[1729700872334,3.97497,2515.8,2515.2,3.97577]
[1729700872493,3.97497,2515.8,2514.8,0.8781]
[1729700872494,3.9755,2515.5,2514.9,7.95237]
[1729700872694,3.9755,2515.5,2514.9,3.97617]
[1729700872695,3.97536,2515.5,2514.9,3.97617]
[1729700872884,3.97507,2515.7,2515.1,3.97596]
[1729700873092,3.97507,2515.7,2515.1,7.95185]
[1729700873296,3.97507,2515.7,2515.1,7.95178]
[1729700873493,3.97479,2515.9,2514.9,0.485427]
[1729700873823,6.97448,2516.1,2515.5,3.97534]
[1729700873824,3.9746,2516.0,2515.5,3.97534]
[1729700874022,3.97448,2516.1,2515.5,7.95068]
[1729700874221,3.97419,2516.3,2515.5,7.95068]
[1729700874222,3.97419,2516.3,2515.5,3.97534]
[1729700874423,3.97449,2516.1,2515.5,7.95052]
[1729700874796,3.97472,2515.9,2515.3,3.97555]
[1729700875045,3.97472,2515.9,2515.4,3.97542]
[1729700875640,6.97472,2515.9,2514.0,0.62220496]
[1729700875844,3.97628,2515.0,2514.4,3.97707]
[1729700876138,3.97628,2515.0,2514.2,3.97731]
[1729700876312,3.97569,2515.3,2514.2,0.397731]
[1729700876501,3.976,2515.1,2514.5,7.95368]
[1729700876706,3.97569,2515.3,2514.7,3.97659]
[1729700876898,3.97519,2515.6,2514.7,3.97649]
[1729700877120,3.97578,2515.3,2514.7,3.97649]
[1729700877716,3.97592,2515.2,2514.6,3.97674]
[1729700877928,3.97558,2515.4,2514.7,3.97646]
[1729700878133,7.95123,2515.4,2514.8,3.97638]
[1729700878298,3.0,2515.5,2514.8,3.97638]
[1729700878500,3.97516,2515.7,2514.9,3.97619]
[1729700878853,3.0,2515.8,2514.7,4.84454]
[1729700878854,3.97571,2515.3,2514.7,4.84454]
[1729700879145,3.97542,2515.5,2514.7,4.84452]
[1729700879447,3.97551,2515.4,2514.7,9.305442]
[1729700879610,3.97568,2515.3,2514.7,8.82101]
[1729700879808,3.97563,2515.4,2514.8,3.97637]
[1729700880202,3.97568,2515.3,2514.8,3.97637]
[1729700880402,3.97584,2515.2,2514.7,4.8446]
[1729700880632,3.97577,2515.3,2514.7,0.868]
[1729700880919,5.27382443,2516.4,2514.7,0.868]
[1729700881121,7.95191,2515.2,2514.7,0.868]
[1729700881330,3.97511,2515.7,2514.2,0.01]
[1729700881331,3.97456,2516.0,2514.2,0.8342]
[1729700881530,3.97577,2515.3,2514.6,3.97673]
[1729700881740,3.97577,2515.3,2514.3,5.26382443]
[1729700881741,3.97456,2516.0,2514.7,3.97658]
[1729700881905,3.97578,2515.3,2514.6,3.97663]
[1729700882250,3.97527,2515.6,2515.1,0.8311]
[1729700882458,3.97527,2515.6,2515.0,3.97606]
[1729700882747,10.95094,2515.5,2514.6,3.97677]
[1729700882953,3.97551,2515.4,2514.8,3.97638]
[1729700883555,3.97514,2515.7,2514.8,0.795299]
[1729700883713,3.97505,2515.7,2515.2,3.97582]
[1729700883912,0.01,2516.5,2515.3,0.8666]
[1729700884130,3.97498,2515.8,2515.3,0.8666]
[1729700884312,3.97498,2515.8,2515.4,3.9755]
[1729700884313,3.97489,2515.8,2515.4,3.9755]
[1729700884649,0.3316,2516.2,2515.3,0.8666]
[1729700884847,3.97492,2515.8,2515.3,0.8666]
[1729700885143,3.97492,2515.8,2515.3,4.84226]
[1729700885350,3.97476,2515.9,2515.4,3.97542]
[1729700885537,3.97476,2515.9,2515.3,4.84226]
[1729700885538,3.9749,2515.8,2515.3,4.84217]
[1729700885738,7.94936,2516.0,2515.4,3.97548]
[1729700885921,0.3316,2516.2,2515.3,0.8666]
[1729700885922,3.9748,2515.9,2515.3,0.8666]
[1729700886248,3.9744,2516.1,2514.9,4.9414]
[1729700886454,0.3316,2516.2,2514.9,1.45934]
[1729700886455,3.97498,2515.8,2514.9,1.45934]
[1729700886643,3.97498,2515.8,2515.1,3.9759]
[1729700886954,3.97515,2515.7,2515.1,3.9759]
[1729700887163,3.97519,2515.6,2515.0,3.97606]
[1729700887659,3.97499,2515.8,2515.2,3.97581]
[1729700887660,3.97504,2515.7,2515.2,3.97581]
[1729700888214,3.97467,2516.0,2515.2,0.795187]
[1729700888415,3.97488,2515.8,2515.2,3.97582]
[1729700888652,3.97518,2515.7,2515.1,3.97585]
[1729700888851,3.97488,2515.8,2515.1,3.97585]
[1729700889056,3.97488,2515.8,2515.2,3.97582]
[1729700889254,3.97468,2516.0,2514.9,1.45934]
[1729700889458,3.97465,2516.0,2515.4,3.9754]
[1729700889756,3.9744,2516.1,2515.6,3.97519]
[1729700890116,3.0,2516.4,2514.8,9.26027443]
[1729700890117,3.97403,2516.4,2515.9,3.97459]
[1729700890320,3.97366,2516.6,2516.0,4.93187]
[1729700890541,3.97366,2516.6,2516.0,0.9574]
[1729700890744,3.97387,2516.5,2516.0,0.9574]
[1729700891257,3.97315,2516.9,2516.0,0.9574]
[1729700891258,3.97314,2516.9,2516.0,0.9574]
[1729700891435,3.9733,2516.8,2516.3,3.97399]
[1729700891628,3.97329,2516.8,2516.2,3.97414]
[1729700891884,3.97329,2516.8,2516.3,3.97397]
[1729700892154,3.97307,2517.0,2516.4,3.9738]
[1729700892357,3.9724,2517.4,2516.7,3.97333]
[1729700892358,3.97245,2517.4,2516.7,3.97333]
[1729700892535,0.3316,2517.7,2516.7,0.9948]
[1729700892536,3.97307,2517.0,2516.7,0.9948]
[1729700892943,3.97278,2517.2,2516.7,4.96824]
[1729700893145,3.9729,2517.1,2516.7,0.9948]
[1729700893347,0.3316,2517.7,2516.8,3.97328]
[1729700893348,3.97261,2517.3,2516.8,3.97328]
[1729700893656,3.97276,2517.2,2516.7,0.9948]
[1729700893829,3.97229,2517.5,2516.7,4.96814]
[1729700893830,3.97236,2517.4,2516.7,4.96814]
[1729700894028,3.97229,2517.5,2516.9,3.97299]
[1729700894332,3.97244,2517.4,2516.9,3.97299]
[1729700894529,0.3316,2517.7,2516.9,3.97299]
[1729700894530,3.97211,2517.6,2516.9,3.97299]
[1729700894732,3.97173,2517.8,2517.2,3.97258]
[1729700895048,3.97204,2517.6,2517.0,3.97285]
[1729700895360,3.97204,2517.6,2517.1,3.97281]
[1729700895724,3.97182,2517.8,2517.1,3.97282]
[1729700895915,3.97182,2517.8,2516.7,0.9948]
[1729700896117,3.97212,2517.6,2517.1,3.97273]
[1729700896863,3.0,2518.0,2516.7,0.9948]
[1729700897072,3.97511,2515.7,2515.2,2.21772085]
[1729700897222,3.97463,2516.0,2515.2,4.97401]
[1729700897418,3.97443,2516.1,2515.2,1.495601]
[1729700897725,3.97426,2516.2,2515.5,3.97531]
[1729700898029,3.97419,2516.3,2515.2,1.495601]
[1729700898231,3.97419,2516.3,2515.7,3.97493]
[1729700898434,3.97419,2516.3,2515.8,3.97473]
[1729700898734,0.3316,2516.2,2515.0,0.8130139]
[1729700899055,3.0,2515.5,2514.3,1.0231]
[1729700899242,3.97647,2514.8,2514.1,3.97743]
[1729700899473,0.3316,2515.0,2514.1,0.397743]
[1729700899674,3.9767,2514.7,2514.1,4.375283]
[1729700900203,3.97661,2514.8,2514.1,4.375203]
[1729700900477,3.97654,2514.8,2514.1,3.97745]
[1729700900793,3.97659,2514.8,2514.1,3.97747]
[1729700901080,3.97679,2514.6,2514.0,3.97771]
[1729700901272,3.97652,2514.8,2514.1,3.97752]
[1729700901471,3.97678,2514.6,2514.1,3.97752]
[1729700901660,3.97652,2514.8,2514.1,4.772989]
[1729700901661,3.97662,2514.7,2514.1,4.772989]
[1729700902081,3.97588,2515.2,2514.4,3.97708]
[1729700902082,3.97622,2515.0,2514.4,3.97708]
[1729700902249,3.97622,2515.0,2514.4,4.99498]
[1729700902448,3.3316,2515.4,2514.1,0.795529]
[1729700902652,3.3316,2515.4,2513.6,0.94627429]
[1729700902653,7.95386,2514.5,2513.7,3.97809]
[1729700902876,3.97693,2514.5,2513.8,3.97795]
[1729700903082,3.97712,2514.4,2513.9,3.97785]
[1729700903300,3.97703,2514.5,2513.9,3.97785]
[1729700903503,3.9768,2514.6,2514.0,3.9777]
[1729700903803,3.9768,2514.6,2514.0,3.97763]
[1729700904099,3.9768,2514.6,2514.0,4.385911]
[1729700904261,3.97699,2514.5,2513.9,3.97786]
[1729700904458,3.97718,2514.4,2513.7,7.95618]
[1729700904669,3.97725,2514.3,2513.7,3.97807]
[1729700904895,3.9775,2514.2,2513.6,0.94627429]
[1729700905104,3.97763,2514.1,2513.6,0.94627429]
[1729700905265,3.9775,2514.2,2513.6,4.92462429]
[1729700905596,3.97666,2514.7,2513.9,3.97787]
[1729700905597,3.97701,2514.5,2513.9,3.97787]
[1729700905796,3.97677,2514.6,2514.0,3.9777]
[1729700905984,3.97666,2514.7,2514.1,3.97756]
[1729700906190,3.9764,2514.9,2514.1,3.97745]
[1729700906362,3.9764,2514.9,2514.2,3.97731]
[1729700906561,3.97603,2515.1,2514.5,3.97683]
[1729700906767,5.26382443,2515.8,2514.3,1.0222]
[1729700906768,3.97514,2515.7,2515.0,3.97604]
[1729700906963,3.97514,2515.7,2515.1,4.99019]
[1729700907162,3.97519,2515.6,2515.1,1.0143]
[1729700907362,3.97487,2515.8,2515.1,1.0143]
[1729700907363,3.97496,2515.8,2515.1,1.0143]
[1729700907667,0.3316,2515.9,2515.1,1.0143]
[1729700907915,3.97526,2515.6,2515.1,1.0143]
[1729700908204,3.97699,2514.5,2513.8,4.99218]
[1729700908388,7.95406,2514.5,2513.9,3.97786]
[1729700908602,3.9767,2514.7,2514.1,3.97751]
[1729700908768,3.97639,2514.9,2514.3,3.97721]
[1729700908966,9.23938443,2515.4,2513.8,5.88992443]
[1729700908967,3.97592,2515.2,2514.6,3.97665]
[1729700909172,3.97559,2515.4,2514.6,3.97665]
[1729700909384,3.97559,2515.4,2514.5,0.07953299]
[1729700909598,0.3316,2516.2,2515.2,3.97568]
[1729700909780,0.3316,2516.2,2515.2,3.97581]
[1729700909781,3.97497,2515.8,2515.2,3.97581]
[1729700909971,3.97497,2515.8,2515.2,3.97574]
[1729700910171,3.97466,2516.0,2515.4,3.97541]
[1729700910411,4.30595,2516.2,2515.1,1.0105]
[1729700910412,3.97435,2516.2,2515.6,3.97511]
[1729700910597,5.26382443,2516.6,2515.5,3.97523]
[1729700910598,3.97442,2516.1,2515.5,3.97523]
[1729700910795,3.97442,2516.1,2515.6,3.97517]
[1729700911002,3.97406,2516.4,2515.8,3.97474]
[1729700911220,3.97406,2516.4,2515.8,4.91824]
[1729700911396,3.97322,2516.9,2516.2,3.97422]
[1729700911397,3.97331,2516.8,2516.2,3.97422]
[1729700911585,3.97331,2516.8,2515.8,5.410174]
[1729700911586,9.23624443,2517.4,2516.4,3.97377]
[1729700911786,3.97324,2516.9,2516.2,3.97424]
[1729700911978,3.97324,2516.9,2516.4,3.97382]
[1729700912178,3.97292,2517.1,2516.1,3.97437]
[1729700912388,3.97291,2517.1,2516.5,3.97368]
[1729700912737,3.99155,2518.0,2514.1,2.88842373]
[1729700912738,2.2335764,2516.5,2514.1,2.88842373]
[1729700913010,3.97819,2513.7,2513.6,4.29e-06]
[1729700913254,3.97819,2513.7,2511.4,3.9817]
[1729700913255,3.97962,2512.8,2511.4,3.9817]
[1729700913379,4.05909541,2512.8,2511.3,3.1249866]
[1729700913580,4.05909541,2512.8,2511.6,3.98142]
[1729700913781,4.98569541,2512.8,2511.4,0.01]
[1729700914011,4.98569541,2512.8,2511.6,3.98141]
[1729700914312,4.98569541,2512.8,2511.4,3.99178]
[1729700914313,4.98569541,2512.8,2511.4,3.98176]
[1729700914616,7.98569541,2512.8,2511.4,3.98168]
[1729700914770,7.90622,2512.8,2511.3,3.1249866]
[1729700915184,1.28873289,2512.8,2511.4,0.4945911]
[1729700915396,4.05925541,2512.7,2512.0,4.55528824]
[1729700915575,3.97995,2512.6,2512.0,2.8930934]
[1729700915791,0.07947541,2512.7,2512.0,2.8930934]
[1729700916080,0.07947541,2512.9,2512.0,2.8930934]
[1729700916596,0.07947541,2513.1,2512.2,1.01]
[1729700916999,5.38842443,2513.5,2512.2,1.01]
[1729700917000,3.97886,2513.3,2512.2,1.01]
[1729700917193,0.07947541,2513.2,2512.2,1.01]
[1729700917387,3.97948,2512.9,2512.2,1.40130934]
[1729700917580,0.07947541,2512.8,2512.2,1.40130934]
[1729700917798,9.36698443,2513.5,2512.2,1.40130934]
[1729700917799,0.1246,2513.5,2512.4,3.98016]
[1729700918000,0.1246,2513.5,2512.3,0.56]
[1729700918001,0.07947541,2513.4,2512.3,0.56]
[1729700918202,0.07947541,2513.4,2512.7,4.94327]
[1729700918408,0.1246,2513.5,2512.9,3.97946]
[1729700918611,0.10315344,2514.6,2513.9,3.97778]
[1729700918830,0.07947541,2514.9,2513.9,0.9842]
[1729700919116,7.954,2514.5,2513.9,0.9842]
[1729700919316,0.07947541,2514.4,2513.9,0.9842]
[1729700919489,5.26382443,2515.0,2513.9,0.9842]
[1729700919490,3.97657,2514.8,2513.9,0.9842]
[1729700919696,4.05604541,2514.8,2514.0,0.07954276]
[1729700919900,4.05604541,2514.8,2514.0,0.50416328]
[1729700920104,3.97678,2514.6,2514.0,0.50416328]
[1729700920410,0.07947541,2514.5,2513.9,0.9842]
[1729700920613,0.07947541,2514.6,2513.9,0.9842]
[1729700920978,3.97653,2514.8,2514.0,4.05713281]
[1729700920979,3.97646,2514.8,2514.0,4.05713281]
[1729700921189,3.97646,2514.8,2514.0,3.97759]
[1729700921390,3.97626,2515.0,2514.0,3.97759]
[1729700921584,3.97566,2515.3,2513.9,0.9842]
[1729700921585,4.05577541,2514.9,2514.1,0.496179]
[1729700921818,3.97664,2514.7,2513.9,0.9842]
[1729700922050,4.05593541,2514.8,2514.0,3.97769]
[1729700922184,0.07947541,2514.8,2514.0,3.97769]
[1729700922380,4.05594541,2514.8,2514.0,3.97769]
[1729700922583,0.07947541,2514.8,2514.0,3.97762]
[1729700922784,0.07947541,2515.0,2514.2,3.97735]
[1729700922995,0.07947541,2515.4,2514.6,0.9917]
[1729700923208,3.97583,2515.2,2514.6,0.9917]
[1729700923398,0.07947541,2515.1,2514.6,0.9917]
[1729700924588,0.07947541,2515.2,2514.6,0.9917]
[1729700924905,0.07947541,2515.3,2514.6,1.48855]
[1729700925283,3.97616,2515.0,2514.6,0.9917]
[1729700925479,0.07947541,2514.9,2514.6,0.9917]
[1729700925809,3.97682,2514.6,2514.0,1.0102]
[1729700926013,3.97682,2514.6,2514.0,4.9879]
[1729700926233,3.97682,2514.6,2514.0,1.0102]
[1729700926448,0.07947541,2514.5,2514.0,1.0102]
[1729700926620,3.97864,2513.5,2512.7,4.94836]
[1729700926822,0.07947541,2513.8,2512.9,3.97936]
[1729700927230,0.07947541,2513.8,2512.7,4.94842]
[1729700927613,7.95224,2513.5,2512.7,4.94842]
[1729700927833,0.07947541,2513.4,2512.7,9.820947]
[1729700928049,0.07947541,2513.4,2512.7,5.841227]
[1729700928347,0.07947541,2513.4,2512.7,9.820917]
[1729700928549,0.07947541,2513.4,2512.8,3.97959]
[1729700929109,3.97797,2513.9,2513.1,3.97905]
[1729700929307,3.97797,2513.9,2513.2,0.07957065]
[1729700929308,0.07947541,2513.8,2513.2,0.07957065]
[1729700929625,0.07947541,2513.8,2513.2,3.97897]
[1729700929769,3.97819,2513.7,2512.7,0.9687]
[1729700930062,3.0,2513.9,2512.7,0.9687]
[1729700930063,0.07947541,2513.6,2512.7,4.94844]
[1729700930264,3.9786,2513.5,2512.8,0.494844]
[1729700930469,0.07947541,2513.4,2512.7,0.9687]
[1729700930656,3.97942,2513.0,2512.7,0.9687]
[1729700930856,0.07947541,2512.9,2512.7,0.9687]
[1729700931471,0.07947541,2512.9,2512.4,0.39803]
[1729700932473,0.07947541,2512.9,2512.3,1.0051]
[1729700932675,3.97903,2513.2,2512.5,3.98001]
[1729700932833,3.97903,2513.2,2512.3,1.0051]
[1729700932834,0.07947541,2513.1,2512.6,3.9799]
[1729700933265,0.07947541,2513.2,2512.8,7.95914]
[1729700933472,0.07947541,2513.3,2513.0,3.97921]
[1729700933681,4.97882,2513.8,2513.1,3.9791]
[1729700933682,0.07947541,2513.5,2513.1,3.9791]
[1729700934173,0.07947541,2513.5,2513.0,4.96371]
[1729700934376,0.07947541,2513.5,2513.0,0.9845]
[1729700935080,0.07947541,2513.7,2513.1,3.97905]
[1729700935245,0.07947541,2513.7,2513.0,0.9845]
[1729700935454,0.07947541,2513.7,2513.2,3.9789]
[1729700935664,3.9778,2514.0,2513.3,3.97871]
[1729700935665,0.07947541,2513.9,2513.3,3.97871]
[1729700936061,3.97822,2513.7,2513.1,3.97913]
[1729700936234,4.05769541,2513.7,2513.1,3.97913]
[1729700936435,4.05769541,2513.7,2513.0,4.96371]
[1729700936671,4.05769541,2513.7,2513.0,5.54046829]
[1729700937266,3.97581,2515.3,2514.6,3.97662]
[1729700937463,3.99903803,2515.5,2514.8,3.97641]
[1729700937668,3.97577,2515.3,2514.8,0.9513]
[1729700937980,3.97576,2515.3,2514.8,0.9513]
[1729700938483,3.97541,2515.5,2514.8,0.9513]
[1729700938687,3.97511,2515.7,2514.9,4.0557974]
[1729700938991,3.97491,2515.8,2515.0,3.97605]
[1729700939287,0.9325,2516.0,2515.2,3.97581]
[1729700939471,4.90716,2516.0,2515.2,3.97581]
[1729700939860,3.97475,2515.9,2515.0,7.95208]
[1729700940185,3.97508,2515.7,2514.9,5.26382443]
[1729700940353,3.97508,2515.7,2514.8,0.9513]
[1729700940354,3.97519,2515.6,2514.8,4.9276]
[1729700940550,3.97508,2515.7,2514.8,4.9276]
[1729700940746,3.97581,2515.3,2514.5,10.21900443]
[1729700940955,3.97552,2515.4,2514.6,3.97676]
[1729700941158,3.97543,2515.5,2514.7,3.9766]
[1729700941474,7.95091,2515.5,2514.7,3.9766]
[1729700941677,3.97575,2515.3,2514.5,10.21905443]
[1729700942072,3.97625,2515.0,2514.5,0.9784]
[1729700942565,3.97598,2515.1,2514.5,0.9784]
[1729700942766,3.9757,2515.3,2514.5,0.9784]
[1729700942965,3.97519,2515.6,2514.5,0.9784]
[1729700943188,3.97593,2515.2,2514.5,0.9784]
[1729700943403,7.95186,2515.2,2514.5,0.9784]
[1729700943698,3.97593,2515.2,2514.5,4.95528]
[1729700943873,3.97591,2515.2,2514.5,4.95524]
[1729700944070,3.97591,2515.2,2514.5,0.9784]